fUST/lending_fUST_20250708
["ID","MTS","AMOUNT","RATE_DAILY","PERIOD"]
[370364595,1751981455430,-1462.65,0.00019726,2]
[370364596,1751981455439,-460.0,0.00019726,2]
[370364597,1751981455448,-460.0,0.00019726,2]
[370364598,1751981455458,-460.0,0.00019726,2]
[370364599,1751981455468,-460.0,0.00019726,2]
[370364600,1751981455477,-1323.76,0.00019726,2]
[370364601,1751981455487,-460.0,0.00019726,2]
[370364602,1751981455496,-704.81,0.00019726,2]
[370364603,1751981455506,-5161.92,0.00019726,2]
[370364604,1751981455515,-460.0,0.00019726,2]
[370364605,1751981455525,-460.0,0.00019726,2]
[370364606,1751981455535,-479.18,0.00019726,2]
[370364607,1751981455545,-460.0,0.00019726,2]
[370364608,1751981455554,-520.04,0.00019726,2]
[370364609,1751981455563,-460.0,0.00019726,2]
[370364610,1751981455573,-460.0,0.00019726,2]
[370364611,1751981455582,-1434.35,0.00019726,2]
[370364612,1751981455591,-5953.51,0.00019726,2]
[370364613,1751981455601,-460.0,0.00019726,2]
[370364614,1751981455611,-460.0,0.00019726,2]
[370364615,1751981455619,-460.0,0.00019726,2]
[370364616,1751981455628,-841.4,0.00019726,2]
[370364617,1751981455638,-460.0,0.00019726,2]
[370364618,1751981455647,-460.0,0.00019726,2]
[370364619,1751981455656,-2917.72,0.00019726,2]
[370364620,1751981455665,-460.0,0.00019726,2]
[370364621,1751981455674,-2157.33,0.00019726,2]
[370364622,1751981455685,-3295.55,0.00019726,2]
[370364623,1751981455694,-460.0,0.00019726,2]
[370364624,1751981455703,-1045.57,0.00019726,2]
[370364625,1751981455713,-460.0,0.00019726,2]
[370364626,1751981455724,-460.0,0.00019726,2]
[370364627,1751981455733,-1048.98,0.00019726,2]
[370364628,1751981455742,-730.08,0.00019726,2]
[370364629,1751981455751,-162.1290201,0.00019726,2]
[370364630,1751981455760,-168.0,0.00019756,2]
[370364631,1751981455770,-479.0,0.00019769,2]
[370364632,1751981455779,-500.0,0.00019773,2]
[370364633,1751981455789,-500.88076442,0.00019773,2]
[370364634,1751981455798,-198.62766792,0.00019773,2]
[370364635,1751981455807,-500.0,0.00019773,2]
[370364636,1751981455817,-500.0,0.00019773,2]
[370364637,1751981455826,-500.0,0.00019773,2]
[370364638,1751981455836,-500.0,0.00019773,2]
[370364639,1751981455845,-500.0,0.00019773,2]
[370364640,1751981455854,-500.0,0.00019773,2]
[370364641,1751981455863,-500.0,0.00019773,2]
[370364642,1751981455872,-1107.58437044,0.00019774,2]
[370364643,1751981455881,-151.0,0.000198,2]
[370364644,1751981455891,-151.0,0.000198,2]
[370364645,1751981455900,-151.0,0.000198,2]
[370364646,1751981455910,-151.0,0.000198,2]
[370364647,1751981455919,-164.485011,0.000198,2]
[370364648,1751981455928,-324.718956,0.000198,2]
[370364649,1751981455937,-324.718956,0.000198,2]
[370364650,1751981455946,-151.0,0.000198,2]
[370364651,1751981455955,-299.797589,0.000198,2]
[370364652,1751981455965,-299.797589,0.000198,2]
[370364653,1751981455974,-2030.76176946,0.000198,2]
[370364654,1751981455984,-1148.56499215,0.00019829,2]
[370364655,1751981455993,-486.0,0.00019841,2]
[370364656,1751981456002,-271.9,0.00019848,3]
[370364657,1751981456012,-294.0,0.00019864,2]
[370364658,1751981456022,-5461.15789496,0.00019866,2]
[370364659,1751981456032,-1191.06189686,0.00019884,2]
[370364660,1751981456041,-151.0,0.000199,2]
[370364661,1751981456050,-151.0,0.000199,2]
[370364662,1751981456059,-151.0,0.000199,2]
[370364663,1751981456068,-151.0,0.000199,2]
[370364664,1751981456078,-162.1290201,0.00019918,2]
[370364665,1751981456087,-294.0,0.00019925,2]
[370364666,1751981456097,-168.0,0.0001993,2]
[370364667,1751981456107,-1235.13118704,0.00019939,2]
[370364668,1751981456117,-168.0,0.00019965,2]
[370364669,1751981456127,-500.75730899,0.00019973,2]
[370364670,1751981456136,-199.990533,0.00019973,2]
[370364671,1751981456145,-151.0,0.00019973,2]
[370364672,1751981456154,-1280.83104096,0.00019994,2]
[370364673,1751981456164,-200.0,0.00019999,2]
[370364674,1751981456174,-247.08948301,0.00019999,2]
[370364675,1751981456183,-8815.0,0.0002,2]
[370364676,1751981456193,-6960.0,0.0002,2]
[370364677,1751981456203,-1000.0,0.0002,2]
[370364678,1751981456213,-1000.0,0.0002,2]
[370364679,1751981456222,-598.6,0.0002,2]
[370364680,1751981456232,-2004.0,0.0002,14]
[370364681,1751981456242,-500.0,0.0002,2]
[370364682,1751981456251,-1000.0,0.0002,2]
[370364683,1751981456260,-1000.0,0.0002,2]
[370364684,1751981456269,-1000.0,0.0002,2]
[370364685,1751981456279,-10284.97095024,0.0002,2]
[370364686,1751981456290,-39073.0,0.0002,2]
[370364687,1751981456302,-1000.0,0.0002,2]
[370364688,1751981456312,-1000.0,0.0002,2]
[370364689,1751981456321,-1000.0,0.0002,2]
[370364690,1751981456331,-1000.0,0.0002,2]
[370364691,1751981456340,-1000.0,0.0002,2]
[370364692,1751981456350,-1000.0,0.0002,2]
[370364693,1751981456360,-1000.0,0.0002,2]
[370364694,1751981456370,-1000.0,0.0002,2]
[370364695,1751981456379,-1000.0,0.0002,2]
[370364696,1751981456388,-1183.26,0.0002,2]
[370364697,1751981456398,-151.0,0.0002,2]
[370364698,1751981456407,-151.0,0.0002,2]
[370364699,1751981456416,-151.0,0.0002,2]
[370364700,1751981456425,-151.0,0.0002,2]
[370364701,1751981456435,-151.0,0.0002,2]
[370364702,1751981456444,-151.0,0.0002,2]
[370364703,1751981456454,-151.0,0.0002,2]
[370364704,1751981456463,-169.645915,0.0002,2]
[370364705,1751981456473,-42250.0,0.0002,2]
[370364706,1751981456482,-460.0,0.0002,2]
[370364707,1751981456491,-460.0,0.0002,2]
[370364708,1751981456501,-298.77259246,0.0002,2]
[370364709,1751981456510,-460.0,0.0002,2]
[370364710,1751981456520,-460.0,0.0002,2]
[370364711,1751981456530,-460.0,0.0002,2]
[370364712,1751981456540,-460.0,0.0002,2]
[370364713,1751981456550,-460.0,0.0002,2]
[370364714,1751981456559,-460.0,0.0002,2]
[370364715,1751981456568,-460.0,0.0002,2]
[370364716,1751981456578,-460.0,0.0002,2]
[370364717,1751981456587,-460.0,0.0002,2]
[370364718,1751981456597,-431.41712358,0.0002,2]
[370364719,1751981456606,-408.1494816,0.0002,2]
[370364720,1751981456616,-460.0,0.0002,2]
[370364721,1751981456625,-460.0,0.0002,2]
[370364722,1751981456635,-460.0,0.0002,2]
[370364723,1751981456644,-529.8,0.0002,2]
[370364724,1751981456654,-151.0,0.0002,2]
[370364725,1751981456663,-151.0,0.0002,2]
[370364726,1751981456673,-151.0,0.0002,2]
[370364727,1751981456682,-151.0,0.0002,2]
[370364728,1751981456691,-151.0,0.0002,2]
[370364729,1751981456701,-460.0,0.0002,2]
[370364730,1751981456710,-460.0,0.0002,2]
[370364731,1751981456719,-151.0,0.0002,2]
[370364732,1751981456729,-151.0,0.0002,2]
[370364733,1751981456738,-151.0,0.0002,2]
[370364734,1751981456748,-151.0,0.0002,2]
[370364735,1751981456757,-151.0,0.0002,2]
[370364736,1751981456767,-460.0,0.0002,2]
[370364737,1751981456776,-151.0,0.0002,2]
[370364738,1751981456787,-151.0,0.0002,2]
[370364739,1751981456796,-151.0,0.0002,2]
[370364740,1751981456805,-151.0,0.0002,2]
[370364741,1751981456815,-216.83981446,0.0002,2]
[370364742,1751981456824,-460.0,0.0002,2]
[370364743,1751981456833,-460.0,0.0002,2]
[370364744,1751981456842,-460.0,0.0002,2]
[370364745,1751981456851,-151.0,0.0002,2]
[370364746,1751981456860,-151.0,0.0002,2]
[370364747,1751981456869,-216.189683,0.0002,2]
[370364748,1751981456879,-460.0,0.0002,2]
[370364749,1751981456888,-508.39,0.0002,2]
[370364750,1751981456898,-460.0,0.0002,2]
[370364751,1751981456907,-460.0,0.0002,2]
[370364752,1751981456916,-460.0,0.0002,2]
[370364753,1751981456926,-460.0,0.0002,2]
[370364754,1751981456935,-460.0,0.0002,2]
[370364755,1751981456945,-460.0,0.0002,2]
[370364756,1751981456954,-212.107887,0.0002,2]
[370364757,1751981456964,-151.0,0.0002,2]
[370364758,1751981456973,-324.718956,0.0002,2]
[370364759,1751981456982,-465.54,0.0002,2]
[370364760,1751981456992,-324.718956,0.0002,2]
[370364761,1751981457001,-460.0,0.0002,2]
[370364762,1751981457011,-324.718956,0.0002,2]
[370364763,1751981457020,-324.718956,0.0002,2]
[370364764,1751981457031,-324.718956,0.0002,2]
[370364765,1751981457040,-324.718956,0.0002,2]
[370364766,1751981457049,-324.718956,0.0002,2]
[370364767,1751981457059,-324.718958,0.0002,2]
[370364768,1751981457068,-460.0,0.0002,2]
[370364769,1751981457078,-569.19,0.0002,2]
[370364770,1751981457087,-460.0,0.0002,2]
[370364771,1751981457097,-151.0,0.0002,2]
[370364772,1751981457106,-151.0,0.0002,2]
[370364773,1751981457115,-151.0,0.0002,2]
[370364774,1751981457124,-151.0,0.0002,2]
[370364775,1751981457133,-460.0,0.0002,2]
[370364776,1751981457143,-460.0,0.0002,2]
[370364777,1751981457152,-460.0,0.0002,2]
[370364778,1751981457161,-460.0,0.0002,2]
[370364779,1751981457171,-460.0,0.0002,2]
[370364780,1751981457180,-460.0,0.0002,2]
[370364781,1751981457190,-460.0,0.0002,2]
[370364782,1751981457200,-460.0,0.0002,2]
[370364783,1751981457210,-460.0,0.0002,2]
[370364784,1751981457219,-460.0,0.0002,2]
[370364785,1751981457229,-460.0,0.0002,2]
[370364786,1751981457238,-713.88,0.0002,2]
[370364787,1751981457248,-460.0,0.0002,2]
[370364788,1751981457258,-465.6469912,0.0002,2]
[370364789,1751981457267,-460.0,0.0002,2]
[370364790,1751981457276,-460.0,0.0002,2]
[370364791,1751981457288,-460.0,0.0002,2]
[370364792,1751981457300,-460.0,0.0002,2]
[370364793,1751981457309,-464.6,0.0002,2]
[370364794,1751981457319,-758.18,0.0002,2]
[370364795,1751981457328,-460.0,0.0002,2]
[370364796,1751981457338,-460.0,0.0002,2]
[370364797,1751981457347,-460.0,0.0002,2]
[370364798,1751981457356,-460.0,0.0002,2]
[370364799,1751981457368,-460.0,0.0002,2]
[370364800,1751981457378,-460.0,0.0002,2]
[370364801,1751981457388,-460.0,0.0002,2]
[370364802,1751981457397,-959.15,0.0002,2]
[370364803,1751981457407,-460.0,0.0002,2]
[370364804,1751981457416,-460.0,0.0002,2]
[370364805,1751981457426,-460.0,0.0002,2]
[370364806,1751981457435,-680.29,0.0002,2]
[370364807,1751981457445,-460.0,0.0002,2]
[370364808,1751981457455,-460.0,0.0002,2]
[370364809,1751981457466,-748.67,0.0002,2]
[370364810,1751981457475,-460.0,0.0002,2]
[370364811,1751981457485,-567.15,0.0002,2]
[370364812,1751981457494,-460.0,0.0002,2]
[370364813,1751981457504,-460.0,0.0002,2]
[370364814,1751981457514,-460.0,0.0002,2]
[370364815,1751981457523,-460.0,0.0002,2]
[370364816,1751981457533,-460.0,0.0002,2]
[370364817,1751981457543,-460.0,0.0002,2]
[370364818,1751981457553,-498.51,0.0002,2]
[370364819,1751981457686,-460.0,0.0002,2]
[370364820,1751981457696,-508.32887548,0.0002,2]
[370364821,1751981457705,-552.98,0.0002,2]
[370364822,1751981457715,-460.0,0.0002,2]
[370364823,1751981457724,-460.0,0.0002,2]
[370364824,1751981457734,-299.797589,0.0002,2]
[370364825,1751981457744,-299.797589,0.0002,2]
[370364826,1751981457754,-299.797589,0.0002,2]
[370364827,1751981457764,-460.0,0.0002,2]
[370364828,1751981457774,-299.797589,0.0002,2]
[370364829,1751981457784,-460.0,0.0002,2]
[370364830,1751981457793,-299.797589,0.0002,2]
[370364831,1751981457803,-299.797589,0.0002,2]
[370364832,1751981457813,-299.797589,0.0002,2]
[370364833,1751981457822,-299.797585,0.0002,2]
[370364834,1751981457831,-460.0,0.0002,2]
[370364835,1751981457840,-460.0,0.0002,2]
[370364836,1751981457850,-460.0,0.0002,2]
[370364837,1751981457859,-460.0,0.0002,2]
[370364838,1751981457869,-460.0,0.0002,2]
[370364839,1751981457878,-609.74,0.0002,2]
[370364840,1751981457887,-460.0,0.0002,2]
[370364841,1751981457896,-1124.92,0.0002,2]
[370364842,1751981457905,-460.0,0.0002,2]
[370364843,1751981457915,-460.0,0.0002,2]
[370364844,1751981457924,-460.0,0.0002,2]
[370364845,1751981457933,-1744.91,0.0002,2]
[370364846,1751981457943,-300.0,0.0002,2]
[370364847,1751981457952,-1208.23,0.0002,2]
[370364848,1751981457962,-460.0,0.0002,2]
[370364849,1751981457971,-482.14,0.0002,2]
[370364850,1751981457981,-460.0,0.0002,2]
[370364851,1751981457991,-460.0,0.0002,2]
[370364852,1751981458000,-460.0,0.0002,2]
[370364853,1751981458009,-460.0,0.0002,2]
[370364854,1751981458018,-460.0,0.0002,2]
[370364855,1751981458027,-1511.21,0.0002,2]
[370364856,1751981458038,-488.95029085,0.0002,2]
[370364857,1751981458047,-460.0,0.0002,2]
[370364858,1751981458056,-524.69409612,0.0002,2]
[370364859,1751981458066,-509.16103536,0.0002,2]
[370364860,1751981458076,-444.71591732,0.0002,2]
[370364861,1751981458086,-460.0,0.0002,2]
[370364862,1751981458095,-794.32,0.0002,2]
[370364863,1751981458104,-460.0,0.0002,2]
[370364864,1751981458114,-460.0,0.0002,2]
[370364865,1751981458123,-460.0,0.0002,2]
[370364866,1751981458132,-460.0,0.0002,2]
[370364867,1751981458142,-519.1,0.0002,2]
[370364868,1751981458151,-460.0,0.0002,2]
[370364869,1751981458160,-460.0,0.0002,2]
[370364870,1751981458169,-460.0,0.0002,2]
[370364871,1751981458179,-493.07,0.0002,2]
[370364872,1751981458188,-460.0,0.0002,2]
[370364873,1751981458197,-460.0,0.0002,2]
[370364874,1751981458206,-460.0,0.0002,2]
[370364875,1751981458215,-460.0,0.0002,2]
[370364876,1751981458224,-460.0,0.0002,2]
[370364877,1751981458234,-771.38,0.0002,2]
[370364878,1751981458243,-460.0,0.0002,2]
[370364879,1751981458252,-460.0,0.0002,2]
[370364880,1751981458261,-460.0,0.0002,2]
[370364881,1751981458270,-460.0,0.0002,2]
[370364882,1751981458281,-460.0,0.0002,2]
[370364883,1751981458291,-2014.72,0.0002,2]
[370364884,1751981458301,-1911.82,0.0002,2]
[370364885,1751981458310,-460.0,0.0002,2]
[370364886,1751981458319,-460.0,0.0002,2]
[370364887,1751981458328,-460.0,0.0002,2]
[370364888,1751981458338,-460.0,0.0002,2]
[370364889,1751981458347,-634.63,0.0002,2]
[370364890,1751981458356,-608.19,0.0002,2]
[370364891,1751981458366,-460.0,0.0002,2]
[370364892,1751981458375,-955.2,0.0002,2]
[370364893,1751981458385,-460.0,0.0002,2]
[370364894,1751981458394,-460.0,0.0002,2]
[370364895,1751981458403,-547.96,0.0002,2]
[370364896,1751981458412,-460.0,0.0002,2]
[370364897,1751981458422,-460.0,0.0002,2]
[370364898,1751981458431,-460.0,0.0002,2]
[370364899,1751981458441,-1049.02,0.0002,2]
[370364900,1751981458451,-460.0,0.0002,2]
[370364901,1751981458460,-460.0,0.0002,2]
[370364902,1751981458469,-746.26,0.0002,2]
[370364903,1751981458478,-467.97,0.0002,2]
[370364904,1751981458488,-460.0,0.0002,2]
[370364905,1751981458498,-460.0,0.0002,2]
[370364906,1751981458507,-905.71,0.0002,2]
[370364907,1751981458516,-460.0,0.0002,2]
[370364908,1751981458526,-460.0,0.0002,2]
[370364909,1751981458537,-460.0,0.0002,2]
[370364910,1751981458546,-460.0,0.0002,2]
[370364911,1751981458555,-460.0,0.0002,2]
[370364912,1751981458565,-460.0,0.0002,2]
[370364913,1751981458575,-460.0,0.0002,2]
[370364914,1751981458584,-850.76,0.0002,2]
[370364915,1751981458593,-460.0,0.0002,2]
[370364916,1751981458602,-460.0,0.0002,2]
[370364917,1751981458612,-1070.05,0.0002,2]
[370364918,1751981458621,-460.0,0.0002,2]
[370364919,1751981458630,-460.0,0.0002,2]
[370364920,1751981458639,-460.0,0.0002,2]
[370364921,1751981458649,-1000.0,0.0002,2]
[370364922,1751981458658,-460.0,0.0002,2]
[370364923,1751981458667,-1572.06,0.0002,2]
[370364924,1751981458676,-841.07,0.0002,2]
[370364925,1751981458685,-621.79,0.0002,2]
[370364926,1751981458695,-693.45,0.0002,2]
[370364927,1751981458703,-460.0,0.0002,2]
[370364928,1751981458713,-500.0,0.0002,2]
[370364929,1751981458721,-188.237889,0.0002,30]
[370364930,1751981458731,-460.0,0.0002,2]
[370364931,1751981458741,-411.03,0.0002,2]
[370364932,1751981458750,-460.0,0.0002,2]
[370364933,1751981458759,-460.0,0.0002,2]
[370364934,1751981458768,-5517.82,0.0002,2]
[370364935,1751981458777,-458.65825922,0.0002,2]
[370364936,1751981458787,-460.0,0.0002,2]
[370364937,1751981458796,-460.0,0.0002,2]
[370364938,1751981458805,-460.0,0.0002,2]
[370364939,1751981458815,-460.0,0.0002,2]
[370364940,1751981458824,-1821.56,0.0002,2]
[370364941,1751981458833,-13455.79,0.0002,2]
[370364942,1751981458843,-460.0,0.0002,2]
[370364943,1751981458852,-460.0,0.0002,2]
[370364944,1751981458861,-5439.09,0.0002,2]
[370364945,1751981458870,-1036.04,0.0002,2]
[370364946,1751981458880,-765.94,0.0002,2]
[370364947,1751981458889,-460.0,0.0002,2]
[370364948,1751981458898,-1757.46,0.0002,2]
[370364949,1751981458907,-1867.66,0.0002,2]
[370364950,1751981458917,-460.0,0.0002,2]
[370364951,1751981458936,-460.0,0.0002,2]
[370364952,1751981458945,-150.336678,0.0002,2]
[370364953,1751981458954,-3385.63,0.0002,2]
[370364954,1751981458964,-460.0,0.0002,2]
[370364955,1751981458973,-460.0,0.0002,2]
[370364956,1751981458982,-460.0,0.0002,2]
[370364957,1751981458991,-460.0,0.0002,2]
[370364958,1751981459001,-991.97,0.0002,2]
[370364959,1751981459010,-460.0,0.0002,2]
[370364960,1751981459020,-460.0,0.0002,2]
[370364961,1751981459029,-898.5,0.0002,2]
[370364962,1751981459038,-460.0,0.0002,2]
[370364963,1751981459048,-460.0,0.0002,2]
[370364964,1751981459057,-560.13,0.0002,2]
[370364965,1751981459067,-460.0,0.0002,2]
[370364966,1751981459076,-4924.84,0.0002,2]
[370364967,1751981459086,-460.0,0.0002,2]
[370364968,1751981459096,-4461.65,0.0002,2]
[370364969,1751981459105,-559.75,0.0002,2]
[370364970,1751981459115,-3873.62,0.0002,2]
[370364971,1751981459125,-460.0,0.0002,2]
[370364972,1751981459135,-460.0,0.0002,2]
[370364973,1751981459144,-460.0,0.0002,2]
[370364974,1751981459154,-602.16,0.0002,2]
[370364975,1751981459163,-460.0,0.0002,2]
[370364976,1751981459172,-2351.87,0.0002,2]
[370364977,1751981459182,-460.0,0.0002,2]
[370364978,1751981459191,-900.22,0.0002,2]
[370364979,1751981459202,-460.0,0.0002,2]
[370364980,1751981459211,-460.0,0.0002,2]
[370364981,1751981459221,-460.0,0.0002,2]
[370364982,1751981459231,-1341.38,0.0002,2]
[370364983,1751981459241,-460.0,0.0002,2]
[370364984,1751981459250,-460.0,0.0002,2]
[370364985,1751981459261,-505.9,0.0002,2]
[370364986,1751981459270,-460.0,0.0002,2]
[370364987,1751981459279,-460.0,0.0002,2]
[370364988,1751981459289,-1267.68,0.0002,2]
[370364989,1751981459302,-1821.03,0.0002,2]
[370364990,1751981459311,-460.0,0.0002,2]
[370364991,1751981459320,-460.0,0.0002,2]
[370364992,1751981459329,-2845.28,0.0002,2]
[370364993,1751981459339,-2121.78,0.0002,2]
[370364994,1751981459348,-222.92865922,0.0002,2]
[370364995,1751981459357,-160.44642835,0.0002,2]
[370364996,1751981459366,-11303.12,0.0002,2]
[370364997,1751981459379,-3011.57,0.0002,2]
[370364998,1751981459388,-11212.71548635,0.0002,2]
[370364999,1751981459398,-460.0,0.0002,2]
[370365000,1751981459408,-460.0,0.0002,2]
[370365001,1751981459417,-460.0,0.0002,2]
[370365002,1751981459427,-151.39700416,0.0002,2]
[370365003,1751981459436,-14319.99377944,0.0002,2]
[370365004,1751981459445,-10804.90634066,0.0002,2]
[370365005,1751981459454,-460.0,0.0002,2]
[370365006,1751981459464,-460.0,0.0002,2]
[370365007,1751981459473,-888.63,0.0002,2]
[370365008,1751981459482,-460.0,0.0002,2]
[370365009,1751981459490,-460.0,0.0002,2]
[370365010,1751981459499,-460.0,0.0002,2]
[370365011,1751981459508,-460.0,0.0002,2]
[370365012,1751981459517,-1189.00072056,0.0002,2]
[370365013,1751981459526,-244.97055552,0.0002,7]
[370365014,1751981459536,-362.06033704,0.0002,2]
[370365015,1751981459545,-40000.0,0.0002,2]
[370365016,1751981459554,-460.0,0.0002,2]
[370365017,1751981459564,-3479.84496321,0.0002,2]
[370365018,1751981459573,-749.06,0.0002,2]
[370365019,1751981459582,-460.0,0.0002,2]
[370365020,1751981459591,-1278.14,0.0002,2]
[370365021,1751981459600,-44510.60323589,0.0002,2]
[370365022,1751981459609,-1955.19,0.0002,2]
[370365023,1751981459618,-526.77,0.0002,2]
[370365024,1751981459627,-460.0,0.0002,2]
[370365025,1751981459636,-460.0,0.0002,2]
[370365026,1751981459645,-6484.75,0.0002,2]
[370365027,1751981459654,-460.0,0.0002,2]
[370365028,1751981459663,-500.0,0.0002,2]
[370365029,1751981459672,-1174.49,0.0002,2]
[370365030,1751981459681,-519.16,0.0002,2]
[370365031,1751981459690,-460.0,0.0002,2]
[370365032,1751981459699,-2194.12,0.0002,2]
[370365033,1751981459708,-460.0,0.0002,2]
[370365034,1751981459717,-460.0,0.0002,2]
[370365035,1751981459726,-531.38,0.0002,2]
[370365036,1751981459735,-6706.7,0.0002,2]
[370365037,1751981459745,-460.0,0.0002,2]
[370365038,1751981459754,-460.0,0.0002,2]
[370365039,1751981459763,-460.0,0.0002,2]
[370365040,1751981459772,-1170.12,0.0002,2]
[370365041,1751981459781,-1201.64,0.0002,2]
[370365042,1751981459790,-193.67551969,0.0002,2]
[370365043,1751981459799,-485.05,0.0002,2]
[370365044,1751981459808,-460.0,0.0002,2]
[370365045,1751981459817,-9417.42,0.0002,2]
[370365046,1751981459826,-460.0,0.0002,2]
[370365047,1751981459835,-3183.99,0.0002,2]
[370365048,1751981459844,-460.0,0.0002,2]
[370365049,1751981459853,-615.44,0.0002,2]
[370365050,1751981459862,-532.41,0.0002,2]
[370365051,1751981459870,-460.0,0.0002,2]
[370365052,1751981459879,-1462.65,0.0002,2]
[370365053,1751981459888,-460.0,0.0002,2]
[370365054,1751981459897,-460.0,0.0002,2]
[370365055,1751981459907,-1323.76,0.0002,2]
[370365056,1751981459915,-460.0,0.0002,2]
[370365057,1751981459925,-704.81,0.0002,2]
[370365058,1751981459934,-5161.92,0.0002,2]
[370365059,1751981459943,-460.0,0.0002,2]
[370365060,1751981459952,-460.0,0.0002,2]
[370365061,1751981459960,-479.18,0.0002,2]
[370365062,1751981459970,-460.0,0.0002,2]
[370365063,1751981459979,-520.04,0.0002,2]
[370365064,1751981459987,-460.0,0.0002,2]
[370365065,1751981459998,-460.0,0.0002,2]
[370365066,1751981460007,-1434.35,0.0002,2]
[370365067,1751981460135,-5953.51,0.0002,2]
[370365068,1751981460147,-460.0,0.0002,2]
[370365069,1751981460156,-460.0,0.0002,2]
[370365070,1751981460166,-460.0,0.0002,2]
[370365071,1751981460176,-841.4,0.0002,2]
[370365072,1751981460186,-460.0,0.0002,2]
[370365073,1751981460197,-4000.0,0.0002,4]
[370365074,1751981460206,-461.22262982,0.0002,2]
[370365075,1751981460216,-2917.72,0.0002,2]
[370365076,1751981460226,-460.0,0.0002,2]
[370365077,1751981460236,-2157.33,0.0002,2]
[370365078,1751981460245,-3295.55,0.0002,2]
[370365079,1751981460254,-460.0,0.0002,2]
[370365080,1751981460264,-1045.57,0.0002,2]
[370365081,1751981460273,-460.0,0.0002,2]
[370365082,1751981460283,-460.0,0.0002,2]
[370365083,1751981460295,-1048.98,0.0002,2]
[370365084,1751981460304,-730.08,0.0002,2]
[370365085,1751981460314,-500.0,0.00020007,2]
[370365086,1751981460323,-150.0,0.00020019,2]
[370365087,1751981460333,-1328.22178948,0.00020049,2]
[370365088,1751981460342,-271.9,0.00020063,3]
[370365089,1751981460352,-294.0,0.00020065,2]
[370365090,1751981460362,-479.0,0.00020078,2]
[370365091,1751981460372,-5461.15789496,0.00020107,2]
[370365092,1751981460383,-168.0,0.00020116,2]
[370365093,1751981460393,-164.485011,0.00020127,3]
[370365094,1751981460403,-162.1290201,0.00020137,2]